bitfinex/quotes_BTCUSD_20240803
["timestamp","ask_amount","ask_price","bid_price","bid_amount"]
[1722712800107,0.166199,60169.0,60162.0,0.09606661]
[1722712800306,0.16575089,60168.0,60162.0,0.26228261]
[1722712800533,0.01,60163.0,60162.0,0.01314856]
[1722712800936,0.01,60163.0,60162.0,0.18336556]
[1722712801135,0.16575089,60168.0,60163.0,0.166215]
[1722712801351,0.16575089,60168.0,60163.0,0.41534505]
[1722712801555,0.16575089,60168.0,60166.0,0.1894]
[1722712801726,0.83102,60167.0,60166.0,0.1894]
[1722712801895,0.33195489,60167.0,60166.0,0.1894]
[1722712802096,0.166215,60163.0,60162.0,0.00033367]
[1722712802335,0.66439589,60163.0,60162.0,0.00033367]
[1722712802972,1.69305589,60163.0,60162.0,0.00033367]
[1722712803164,2.00205589,60163.0,60162.0,0.00033367]
[1722712803316,1.93678589,60163.0,60162.0,0.00033367]
[1722712803521,1.27192589,60163.0,60162.0,0.00033367]
[1722712803721,0.99982589,60163.0,60162.0,0.00033367]
[1722712803971,1.33225589,60163.0,60162.0,0.00033367]
[1722712804201,1.32925589,60163.0,60162.0,0.00033367]
[1722712804414,0.99682589,60163.0,60162.0,0.00033367]
[1722712804577,0.34596589,60163.0,60162.0,0.00033367]
[1722712804783,0.67839589,60163.0,60162.0,0.00033367]
[1722712804957,0.34596589,60163.0,60162.0,0.00033367]
[1722712805186,0.85111651,60163.0,60162.0,0.00033367]
[1722712805581,0.53268651,60163.0,60162.0,0.00033367]
[1722712805783,1.70507651,60163.0,60162.0,0.00033367]
[1722712805985,1.82927008,60163.0,60162.0,0.00033367]
[1722712806188,1.82926632,60163.0,60162.0,0.00033367]
[1722712806406,1.83226632,60163.0,60162.0,0.00033367]
[1722712806652,1.81826632,60163.0,60162.0,0.00033367]
[1722712806793,1.81526632,60163.0,60162.0,0.00033367]
[1722712806993,2.24769632,60163.0,60162.0,0.00033367]
[1722712807197,2.52084572,60163.0,60162.0,0.00033367]
[1722712807395,2.26169632,60163.0,60162.0,0.00033367]
[1722712808012,2.25169632,60163.0,60162.0,0.00033367]
[1722712808216,2.51083443,60163.0,60162.0,0.00033367]
[1722712808934,3.13901532,60163.0,60162.0,0.00033367]
[1722712809144,2.56879394,60163.0,60162.0,0.00033367]
[1722712809352,2.52283443,60163.0,60162.0,0.00033367]
[1722712809605,2.52083443,60163.0,60162.0,0.00033367]
[1722712809800,2.26169632,60163.0,60162.0,0.00033367]
[1722712809982,1.338622,60162.0,60161.0,0.09187429]
[1722712810225,2.24771832,60162.0,60161.0,0.09187429]
[1722712810430,2.50599276,60162.0,60161.0,0.09187429]
[1722712810632,2.79915332,60162.0,60161.0,0.09187429]
[1722712810831,2.2477962,60162.0,60161.0,0.09187429]
[1722712811246,2.2617962,60162.0,60161.0,0.09187429]
[1722712811447,2.32578037,60162.0,60161.0,0.09187429]
[1722712811577,2.2617962,60162.0,60161.0,0.09187429]
[1722712812380,2.2757962,60162.0,60161.0,0.09187429]
[1722712813285,2.33972578,60162.0,60161.0,0.09187429]
[1722712814116,1.52120247,60162.0,60161.0,0.09187429]
[1722712814314,1.76823435,60162.0,60161.0,0.09187429]
[1722712814520,1.66823435,60162.0,60161.0,0.09187429]
[1722712814725,1.66822041,60162.0,60161.0,0.09187429]
[1722712815458,1.33578541,60162.0,60161.0,0.09187429]
[1722712815575,0.32494752,60162.0,60161.0,0.35729234]
[1722712815783,0.32494752,60162.0,60161.0,0.37011002]
[1722712815784,0.014,60162.0,60161.0,0.37011002]
[1722712815984,0.332377,60173.0,60161.0,0.53633002]
[1722712816195,0.05793361,60188.0,60161.0,0.53633002]
[1722712816196,0.166168,60180.0,60173.0,0.1825]
[1722712816393,0.49750831,60183.0,60179.0,0.08291805]
[1722712816394,0.166166,60181.0,60179.0,0.08291805]
[1722712816627,0.332283,60190.0,60179.0,0.08291805]
[1722712816829,0.02606133,60181.0,60180.0,0.0117827]
[1722712817027,0.02606133,60181.0,60180.0,0.1942827]
[1722712817240,0.16575089,60189.0,60180.0,0.1942827]
[1722712817433,0.17265095,60188.0,60181.0,0.166164]
[1722712817635,0.17265095,60188.0,60180.0,0.1942827]
[1722712817636,0.16575089,60187.0,60182.0,0.01275901]
[1722712817889,0.166161,60183.0,60180.0,0.1825]
[1722712818097,0.332309,60185.0,60180.0,0.1825]
[1722712818294,0.49806689,60184.0,60180.0,0.1825]
[1722712818441,0.166163,60182.0,60180.0,0.1825]
[1722712819047,0.170165,60181.0,60180.0,0.1825]
[1722712819270,0.004,60181.0,60180.0,0.1825]
[1722712819720,0.170165,60181.0,60180.0,0.1825]
[1722712819931,0.834825,60181.0,60180.0,0.1825]
[1722712820113,0.166181,60175.0,60174.0,0.0784]
[1722712820367,0.66429489,60175.0,60174.0,0.0784]
[1722712820571,1.16935352,60175.0,60174.0,0.0784]
[1722712820967,0.498553,60174.0,60173.0,0.1041]
[1722712821181,0.498603,60168.0,60167.0,0.0857]
[1722712821383,0.83106,60164.0,60163.0,0.1065]
[1722712821520,1.32923489,60164.0,60163.0,0.1065]
[1722712821744,0.99681089,60164.0,60163.0,0.1065]
[1722712822405,1.32923489,60164.0,60163.0,0.1065]
[1722712822778,0.99781089,60164.0,60163.0,0.1145]
[1722712822974,0.99881089,60164.0,60163.0,0.1235]
[1722712824034,1.33123489,60164.0,60163.0,0.1235]
[1722712824240,1.50396276,60164.0,60163.0,0.017]
[1722712824441,1.33123489,60164.0,60163.0,0.017]
[1722712824643,1.19760691,60164.0,60163.0,0.017]
[1722712824842,0.99781089,60164.0,60163.0,0.02081209]
[1722712825114,0.99681089,60164.0,60163.0,0.01281209]
[1722712825322,1.00681089,60164.0,60163.0,0.01381209]
[1722712825524,0.022,60164.0,60163.0,0.002]
[1722712825743,0.2092,60180.0,60163.0,0.01281209]
[1722712825744,0.49750831,60179.0,60163.0,0.01281209]
[1722712825904,0.332424,60164.0,60161.0,0.09187429]
[1722712826113,0.520636,60164.0,60163.0,0.002]
[1722712826315,0.85306,60164.0,60163.0,0.002]
[1722712826729,0.85306,60164.0,60163.0,0.001]
[1722712826730,1.5139628,60164.0,60163.0,0.001]
[1722712826935,1.5139628,60164.0,60161.0,0.09187429]
[1722712826936,0.831087,60162.0,60161.0,0.09187429]
[1722712827097,1.5020008,60162.0,60161.0,0.09287429]
[1722712827298,1.32927289,60162.0,60161.0,0.09287429]
[1722712828321,1.32927289,60162.0,60161.0,0.09187429]
[1722712828730,0.99683789,60162.0,60161.0,0.09187429]
[1722712829288,1.00883789,60162.0,60161.0,0.09287429]
[1722712829687,1.33627289,60162.0,60161.0,0.09287429]
[1722712829893,1.8414393,60162.0,60161.0,0.10669197]
[1722712830094,1.8414393,60162.0,60161.0,0.10569197]
[1722712830977,1.66870789,60162.0,60161.0,0.10569197]
[1722712831179,1.80690447,60162.0,60161.0,0.10569197]
[1722712831384,1.81590447,60162.0,60161.0,0.10669197]
[1722712831807,1.47446947,60162.0,60161.0,0.10569197]
[1722712832214,1.47946947,60162.0,60161.0,0.10569197]
[1722712832600,0.81459947,60162.0,60161.0,0.10469197]
[1722712832776,0.32041358,60162.0,60161.0,0.29249197]
[1722712833008,0.31341358,60162.0,60161.0,0.29149197]
[1722712833202,0.15519658,60162.0,60161.0,0.29249197]
[1722712833436,0.16419658,60162.0,60161.0,0.29349197]
[1722712833645,0.15619658,60162.0,60161.0,0.45871197]
[1722712833834,0.16119658,60162.0,60161.0,0.29249197]
[1722712834616,0.16119658,60162.0,60161.0,0.29149197]
[1722712834617,0.14319658,60162.0,60161.0,0.29149197]
[1722712834823,0.80759947,60162.0,60161.0,0.29149197]
[1722712835067,1.14703447,60162.0,60161.0,0.29249197]
[1722712835269,0.81459947,60162.0,60161.0,0.29249197]
[1722712835472,0.80759947,60162.0,60161.0,0.29149197]
[1722712835818,0.14319658,60162.0,60161.0,0.29149197]
[1722712836004,0.63684858,60162.0,60161.0,0.29449197]
[1722712836210,0.64184858,60162.0,60161.0,0.29149197]
[1722712836565,0.64184858,60162.0,60161.0,0.10469197]
[1722712836566,1.14203447,60162.0,60161.0,0.10469197]
[1722712836758,1.64220402,60162.0,60161.0,0.10469197]
[1722712836985,1.64320367,60162.0,60161.0,0.10469197]
[1722712837470,1.64220367,60162.0,60161.0,0.10469197]
[1722712837811,1.47446947,60162.0,60161.0,0.10469197]
[1722712838283,1.64520527,60162.0,60161.0,0.10469197]
[1722712838430,1.65520527,60162.0,60161.0,0.10569197]
[1722712838831,1.64520527,60162.0,60161.0,0.10469197]
[1722712839059,1.46746947,60162.0,60161.0,0.10469197]
[1722712839300,1.65021187,60162.0,60161.0,0.10569197]
[1722712839479,1.65021187,60162.0,60161.0,0.10669197]
[1722712839480,1.15403447,60162.0,60161.0,0.10669197]
[1722712840285,0.34947745,60162.0,60161.0,0.10669197]
[1722712840483,0.15719658,60162.0,60161.0,0.10669197]
[1722712841922,0.185217,60162.0,60161.0,0.10669197]
[1722712842278,1.01583789,60162.0,60161.0,0.10669197]
[1722712842574,0.68340289,60162.0,60161.0,0.10669197]
[1722712843397,0.70946587,60162.0,60161.0,0.10669197]
[1722712843599,0.35096789,60162.0,60161.0,0.10669197]
[1722712844411,0.35096789,60162.0,60161.0,0.07559197]
[1722712844619,0.68340289,60162.0,60161.0,0.07559197]
[1722712844815,0.35096789,60162.0,60161.0,0.07559197]
[1722712846299,0.019,60162.0,60161.0,0.07559197]
[1722712846712,0.019,60162.0,60161.0,0.45911197]
[1722712846920,0.019,60162.0,60161.0,0.79155297]
[1722712847122,0.0450619,60162.0,60161.0,1.12399397]
[1722712847873,0.0450619,60162.0,60161.0,1.45643497]
[1722712848090,0.0450619,60162.0,60161.0,1.12399397]
[1722712848290,0.0360619,60162.0,60161.0,1.14599397]
[1722712848516,0.0360619,60162.0,60161.0,1.14999397]
[1722712849047,0.0360619,60162.0,60161.0,1.16999397]
[1722712849181,0.0260619,60162.0,60161.0,1.16899397]
[1722712849423,0.0260619,60162.0,60161.0,1.15199397]
[1722712849638,0.0260619,60162.0,60161.0,0.81955297]
[1722712850577,0.0260619,60162.0,60161.0,0.48711197]
[1722712850777,0.0260619,60162.0,60161.0,0.81955297]
[1722712851177,0.0260619,60162.0,60161.0,0.46411197]
[1722712851561,0.0258299,60162.0,60161.0,0.79655297]
[1722712851983,0.166194,60171.0,60164.0,0.166211]
[1722712852190,0.17270249,60170.0,60167.0,0.01]
[1722712852392,0.332371,60174.0,60167.0,0.01]
[1722712852393,0.17234236,60169.0,60167.0,0.01]
[1722712852758,0.166193,60171.0,60168.0,0.01023849]
[1722712853049,0.166198,60169.0,60168.0,0.01023849]
[1722712853249,0.166201,60168.0,60164.0,0.001]
[1722712853459,0.16777939,60167.0,60164.0,0.001]
[1722712853664,0.166205,60167.0,60164.0,0.001]
[1722712854066,0.166209,60165.0,60164.0,0.001]
[1722712854269,0.166207,60166.0,60164.0,0.001]
[1722712854675,0.00157439,60165.0,60161.0,0.27807429]
[1722712854890,0.16778339,60165.0,60161.0,0.27807429]
[1722712855289,0.166215,60163.0,60161.0,0.26807429]
[1722712855514,0.00157439,60162.0,60161.0,0.27807429]
[1722712855774,0.00157439,60164.0,60161.0,0.27807429]
[1722712856024,0.00157439,60165.0,60161.0,0.27807429]
[1722712856226,0.002,60166.0,60162.0,0.166216]
[1722712856597,0.332394,60170.0,60162.0,0.166216]
[1722712856598,0.166199,60169.0,60162.0,0.176216]
[1722712856798,0.166199,60169.0,60163.0,0.166214]
[1722712857046,0.16621,60165.0,60161.0,0.28107429]
[1722712857220,0.16778639,60164.0,60161.0,0.27107429]
[1722712857430,0.166217,60162.0,60161.0,0.27107429]
[1722712857635,0.166217,60162.0,60161.0,0.06377429]
[1722712857636,0.99683789,60162.0,60161.0,0.06377429]
[1722712857832,1.32927289,60162.0,60161.0,0.06077429]
[1722712858180,0.99683789,60162.0,60161.0,0.06077429]
[1722712858918,0.66440289,60162.0,60161.0,0.06477429]
[1722712859330,0.66440289,60162.0,60161.0,0.06077429]
[1722712859573,0.166217,60162.0,60161.0,0.06077429]
[1722712859776,0.166217,60162.0,60161.0,0.06177429]
[1722712859777,0.178217,60162.0,60161.0,0.06177429]
[1722712859969,0.012,60162.0,60161.0,0.07202843]
[1722712860890,0.012,60162.0,60161.0,0.24907843]
[1722712861187,0.332391,60171.0,60163.0,0.176214]
[1722712861188,0.16777039,60170.0,60163.0,0.176214]
[1722712861394,0.166196,60170.0,60163.0,0.176214]
[1722712861589,0.166196,60170.0,60164.0,0.01024744]
[1722712861839,0.166198,60169.0,60164.0,0.01024744]
[1722712862201,0.166209,60165.0,60164.0,0.01024744]
[1722712862415,0.831047,60165.0,60164.0,0.01024744]
[1722712862642,0.166217,60162.0,60161.0,0.06160429]
[1722712862837,0.49815589,60168.0,60164.0,0.01024744]
[1722712862838,0.498628,60165.0,60164.0,0.01024744]
[1722712863105,0.498628,60165.0,60161.0,0.06160429]
[1722712863106,0.831087,60162.0,60161.0,0.06160429]
[1722712863345,0.99683789,60162.0,60161.0,0.06160429]
[1722712863715,0.66440289,60162.0,60161.0,0.06160429]
[1722712864352,0.99683789,60162.0,60161.0,0.06160429]
[1722712864760,0.831087,60162.0,60161.0,0.06160429]
[1722712865023,0.498652,60162.0,60161.0,0.06160429]
[1722712865319,0.834087,60162.0,60161.0,0.06160429]
[1722712865746,0.834087,60162.0,60161.0,0.06260429]
[1722712865747,1.00983789,60162.0,60161.0,0.06260429]
[1722712865902,0.99683789,60162.0,60161.0,0.06160429]
[1722712866102,0.99883789,60162.0,60161.0,0.06160429]
[1722712866319,1.00183789,60162.0,60161.0,0.06160429]
[1722712866526,0.99983789,60162.0,60161.0,0.06160429]
[1722712866930,0.66740289,60162.0,60161.0,0.06160429]
[1722712867171,0.003,60162.0,60161.0,0.06160429]
[1722712867371,0.169217,60162.0,60161.0,0.06160429]
[1722712867574,0.332425,60164.0,60161.0,0.06160429]
[1722712867776,0.174217,60162.0,60161.0,0.06260429]
[1722712867975,0.506652,60162.0,60161.0,0.06260429]
[1722712868180,0.017,60162.0,60161.0,0.06360429]
[1722712868321,0.017,60162.0,60161.0,0.06260429]
[1722712868322,0.009,60162.0,60161.0,0.06260429]
[1722712868785,0.04939961,60176.0,60162.0,0.261716]
[1722712868995,0.166196,60170.0,60164.0,0.166212]
[1722712869200,0.166196,60170.0,60163.0,0.1083]
[1722712869201,0.332405,60168.0,60163.0,0.1083]
[1722712869405,0.166212,60164.0,60163.0,0.1083]
[1722712869615,0.04939961,60172.0,60161.0,0.06360429]
[1722712869813,0.07409942,60173.0,60162.0,0.166217]
[1722712869814,0.166202,60168.0,60162.0,0.166217]
[1722712870055,0.332397,60169.0,60162.0,0.166216]
[1722712870056,0.166199,60169.0,60162.0,0.166216]
[1722712870264,0.04939961,60178.0,60169.0,0.0855]
[1722712870527,0.166185,60174.0,60169.0,0.0855]
[1722712870771,0.00157439,60173.0,60169.0,0.0855]
[1722712871039,0.16575089,60177.0,60169.0,0.0855]
[1722712871295,0.07409942,60182.0,60169.0,0.0855]
[1722712871296,0.024,60176.0,60169.0,0.0855]
[1722712871530,0.17818,60176.0,60170.0,0.17642902]
[1722712871768,0.012,60174.0,60171.0,0.16619]
[1722712872029,0.012,60174.0,60172.0,0.166189]
[1722712872298,0.011,60173.0,60172.0,0.01022955]
[1722712872558,0.011,60173.0,60172.0,0.50879955]
[1722712872780,0.012,60174.0,60173.0,0.176187]
[1722712872978,0.024,60174.0,60173.0,0.508561]
[1722712873183,0.19667677,60174.0,60173.0,0.01022732]
[1722712873388,0.024,60174.0,60173.0,0.01022732]
[1722712873600,0.024,60174.0,60173.0,0.939235]
[1722712873801,0.024,60174.0,60173.0,1.00246232]
[1722712873918,0.024,60174.0,60173.0,0.75558832]
[1722712874121,0.012,60174.0,60173.0,0.75558832]
[1722712874484,0.012,60174.0,60173.0,1.08796232]
[1722712875102,0.012,60174.0,60173.0,1.08996232]
[1722712875277,0.00091301,60186.0,60180.0,0.01]
[1722712875479,0.00091301,60186.0,60181.0,0.00332294]
[1722712875684,0.00091301,60186.0,60185.0,0.498462]
[1722712875893,0.00091301,60186.0,60185.0,0.8709705]
[1722712876096,0.00091301,60186.0,60185.0,1.2262785]
[1722712876301,0.00091301,60186.0,60185.0,1.3262785]
[1722712876500,0.00091301,60186.0,60185.0,1.90925544]
[1722712876826,0.00091301,60186.0,60185.0,2.14420495]
[1722712877031,0.00891301,60186.0,60185.0,2.14520495]
[1722712877280,0.00891301,60186.0,60185.0,2.10405544]
[1722712877491,0.01891301,60186.0,60185.0,2.10405544]
[1722712877901,1.0,60200.0,60199.0,0.860577]
[1722712878114,1.0,60200.0,60199.0,1.399608]
[1722712878325,1.0,60200.0,60199.0,1.41977723]
[1722712878529,1.0,60200.0,60199.0,0.73531523]
[1722712878741,1.0,60200.0,60199.0,0.40308423]
[1722712878870,1.0,60200.0,60199.0,0.73531523]
[1722712879071,1.002,60200.0,60199.0,0.39508423]
[1722712879958,1.002,60200.0,60199.0,0.38308423]
[1722712879959,1.001,60200.0,60199.0,0.38308423]
[1722712880138,1.001,60200.0,60199.0,0.21696923]
[1722712880310,1.0,60200.0,60199.0,0.20396923]
[1722712880531,1.0,60200.0,60199.0,0.70931523]
[1722712880870,1.0,60200.0,60199.0,1.04154623]
[1722712881152,1.0,60200.0,60199.0,1.03454623]
[1722712881352,1.0,60200.0,60199.0,0.37008423]
[1722712881555,1.0,60200.0,60199.0,0.38408423]
[1722712881727,1.0,60200.0,60199.0,0.21796923]
[1722712882150,1.0,60200.0,60199.0,0.20396923]
[1722712882354,1.0,60200.0,60199.0,0.01816923]
[1722712882355,1.66408789,60200.0,60199.0,0.01816923]
[1722712882555,2.44343789,60200.0,60199.0,0.02416923]
[1722712882761,2.44343789,60200.0,60199.0,0.014]
[1722712882921,2.53593789,60200.0,60199.0,0.014]
[1722712883122,2.86816289,60200.0,60199.0,0.014]
[1722712883323,3.11628805,60200.0,60199.0,0.008]
[1722712883545,1.163001,60189.0,60172.0,0.10263151]
[1722712883788,2.03593789,60189.0,60171.0,0.1128]
[1722712883957,2.03593789,60189.0,60188.0,0.4685938]
[1722712884170,2.03593789,60189.0,60188.0,0.4584]
[1722712884379,1.37136589,60189.0,60188.0,0.4685938]
[1722712884580,0.66417989,60189.0,60188.0,0.4685938]
[1722712884788,1.16396589,60189.0,60188.0,0.4685938]
[1722712885149,1.16396589,60189.0,60188.0,0.0101938]
[1722712885150,1.49625189,60189.0,60188.0,0.0101938]
[1722712885354,1.49625189,60189.0,60188.0,0.0111938]
[1722712885355,1.83253789,60189.0,60188.0,0.0111938]
[1722712885483,1.83253789,60189.0,60188.0,0.002]
[1722712885484,1.83553789,60189.0,60188.0,0.002]
[1722712885890,1.50325189,60189.0,60188.0,0.002]
[1722712888318,1.51297842,60189.0,60188.0,0.002]
[1722712888926,0.007,60189.0,60188.0,0.002]
[1722712889377,0.007,60189.0,60188.0,0.1783398]
[1722712889585,0.007,60189.0,60188.0,0.5106318]
[1722712889789,0.007,60189.0,60188.0,0.1783398]
[1722712890000,0.007,60189.0,60188.0,0.0121938]
[1722712890217,0.004,60189.0,60188.0,0.0111938]
[1722712890447,0.007,60189.0,60188.0,0.0111938]
[1722712890773,0.007,60189.0,60188.0,0.1773398]
[1722712890974,0.007,60189.0,60188.0,0.0111938]
[1722712891180,0.007,60189.0,60188.0,0.0101938]
[1722712891181,0.003,60189.0,60188.0,0.0101938]
[1722712891595,0.008,60189.0,60188.0,0.0101938]
[1722712892463,0.008,60189.0,60186.0,0.1167]
[1722712892618,0.174143,60189.0,60188.0,0.0101938]
[1722712892817,0.174143,60189.0,60180.0,0.1167]
[1722712892818,0.498438,60188.0,60187.0,0.01019603]
[1722712893058,0.00157439,60185.0,60180.0,0.1167]
[1722712893262,0.166165,60181.0,60180.0,0.1167]
[1722712893672,0.00157439,60185.0,60180.0,0.1167]
[1722712893878,0.16575089,60188.0,60175.0,0.4584]
[1722712894074,0.332333,60181.0,60175.0,0.4584]
[1722712894275,0.166179,60176.0,60175.0,0.4584]
[1722712894448,0.332344,60179.0,60173.0,0.20763]
[1722712894449,0.00157439,60174.0,60173.0,0.20763]
[1722712894654,0.166182,60175.0,60173.0,0.20763]
[1722712894870,0.00157439,60174.0,60173.0,0.20763]
[1722712895077,0.00157439,60175.0,60173.0,0.20763]
[1722712895472,0.166163,60182.0,60174.0,0.33569251]
[1722712895678,0.00157439,60181.0,60175.0,0.16618]
[1722712895897,0.00157439,60181.0,60176.0,0.166178]
[1722712896140,0.00157439,60181.0,60174.0,0.332369]
[1722712896141,0.00157439,60183.0,60179.0,0.166169]
[1722712896337,0.332292,60188.0,60179.0,0.166169]
[1722712896338,0.00157439,60185.0,60179.0,0.166169]
[1722712896509,0.16772839,60185.0,60179.0,0.166169]
[1722712896713,0.001,60181.0,60180.0,0.166168]
[1722712897167,0.166152,60186.0,60180.0,0.166168]
[1722712897342,0.49804489,60188.0,60180.0,0.166168]
[1722712897343,0.00157439,60185.0,60180.0,0.166168]
[1722712897843,0.00157439,60188.0,60180.0,0.01]
[1722712898246,0.001,60181.0,60180.0,0.5145]
[1722712898585,0.001,60181.0,60180.0,0.5375]
[1722712899141,0.001,60181.0,60180.0,0.889836]
[1722712899364,0.001,60181.0,60180.0,1.202172]
[1722712899513,0.004,60188.0,60186.0,0.16615]
[1722712899714,0.006,60188.0,60185.0,0.332307]
[1722712899938,0.006,60188.0,60186.0,0.166151]
[1722712900133,0.006,60188.0,60181.0,0.01]
[1722712900134,0.006,60188.0,60185.0,0.166153]
[1722712900342,0.004,60188.0,60184.0,0.166156]
[1722712900986,0.00091301,60189.0,60184.0,0.166156]
[1722712901392,0.006,60188.0,60181.0,0.01]
[1722712901539,0.168147,60188.0,60182.0,0.166162]
[1722712901940,0.006,60188.0,60182.0,0.332323]
[1722712902164,0.006,60188.0,60183.0,0.332315]
[1722712902448,0.00091301,60189.0,60181.0,0.342326]
[1722712902660,0.004,60188.0,60183.0,0.166159]
[1722712902912,0.16705701,60189.0,60181.0,0.166165]
[1722712902913,0.00157439,60187.0,60181.0,0.166165]
[1722712903040,0.00157439,60187.0,60180.0,0.033]
[1722712903041,0.00157439,60184.0,60180.0,0.033]
[1722712903241,0.166146,60188.0,60181.0,0.166164]
[1722712903444,0.16705701,60189.0,60182.0,0.16616]
[1722712903648,0.16705701,60189.0,60181.0,0.332328]
[1722712903649,0.00391301,60189.0,60181.0,0.332328]
[1722712903872,0.00391301,60189.0,60183.0,0.166159]
[1722712904073,0.00091301,60189.0,60188.0,0.694138]
[1722712904279,0.00091301,60189.0,60188.0,0.1957]
[1722712904699,0.00591301,60189.0,60188.0,0.1957]
[1722712904900,0.00591301,60189.0,60188.0,0.2058938]
[1722712905254,0.00091301,60189.0,60188.0,0.2058938]
[1722712905462,0.50434201,60189.0,60188.0,0.0101938]
[1722712905664,1.3346649,60189.0,60188.0,0.0101938]
[1722712905869,0.332308,60186.0,60177.0,0.0879]
[1722712906111,0.332308,60185.0,60177.0,0.254074]
[1722712906312,0.332308,60185.0,60178.0,0.01021614]
[1722712906513,0.16575089,60188.0,60178.0,0.01021614]
[1722712906718,0.16575089,60188.0,60179.0,0.00157439]
[1722712906719,0.166168,60180.0,60179.0,0.00157439]
[1722712906942,0.166168,60180.0,60178.0,0.01021614]
[1722712907160,0.16575089,60188.0,60177.0,0.166174]
[1722712907375,0.16575089,60188.0,60179.0,0.01021391]
[1722712907763,0.166158,60184.0,60180.0,0.01021167]
[1722712908019,0.166158,60184.0,60183.0,0.00025]
[1722712908417,0.498472,60184.0,60183.0,0.00025]
[1722712908958,0.166158,60184.0,60183.0,0.00025]
[1722712909213,0.006,60188.0,60187.0,0.830742]
[1722712909431,0.006,60188.0,60187.0,1.216039]
[1722712909432,0.002,60188.0,60187.0,1.216039]
[1722712909624,0.002,60188.0,60187.0,1.32623503]
[1722712909940,0.00091301,60189.0,60188.0,1.390722]
[1722712910156,0.00091301,60189.0,60188.0,1.67947289]
[1722712910349,0.00091301,60189.0,60188.0,2.23355452]
[1722712910568,0.00091301,60189.0,60188.0,2.23355469]
[1722712910768,0.166085,60211.0,60199.0,1.045277]
[1722712910990,0.332191,60207.0,60199.0,0.1158]
[1722712911196,0.49750831,60212.0,60199.0,0.50851523]
[1722712911396,0.166083,60211.0,60199.0,0.86374623]
[1722712911601,0.332162,60212.0,60199.0,0.17628423]
[1722712911799,0.166097,60206.0,60199.0,0.17628423]
[1722712912005,0.332162,60212.0,60199.0,0.50851523]
[1722712912217,0.332175,60210.0,60199.0,0.01016923]
[1722712912390,1.001,60200.0,60199.0,0.507346]
[1722712912595,1.001,60200.0,60199.0,1.68542812]
[1722712913185,1.002,60200.0,60199.0,1.69642812]
[1722712913383,1.002,60200.0,60199.0,1.19844623]
[1722712914628,1.002,60200.0,60199.0,0.85621523]
[1722712915723,1.002,60200.0,60199.0,1.18844623]
[1722712915976,1.002,60200.0,60199.0,0.85621523]
[1722712916400,1.002,60200.0,60199.0,0.52398423]
[1722712916538,1.002,60200.0,60199.0,0.35786923]
[1722712916955,1.002,60200.0,60199.0,0.52398423]
[1722712917371,1.002,60200.0,60199.0,0.35786923]
[1722712918162,1.002,60200.0,60199.0,0.33486923]
[1722712918386,1.002,60200.0,60199.0,0.03016923]
[1722712919123,1.002,60200.0,60199.0,1.03649712]
[1722712919318,1.002,60200.0,60199.0,1.50752812]
[1722712919524,1.002,60200.0,60199.0,1.52752812]
[1722712919748,1.00199968,60200.0,60199.0,1.17529712]
[1722712920167,1.00199968,60200.0,60199.0,0.76731523]
[1722712920341,1.00199968,60200.0,60199.0,0.16896923]
[1722712920646,1.00199968,60200.0,60199.0,0.03016923]
[1722712920647,1.50033668,60200.0,60199.0,0.03016923]
[1722712921179,1.83256168,60200.0,60199.0,0.02]
[1722712922019,1.99831257,60200.0,60199.0,0.011]
[1722712922219,1.99731257,60200.0,60199.0,0.011]
[1722712922416,2.32953757,60200.0,60199.0,0.011]
[1722712922639,3.11867829,60200.0,60199.0,0.011]
[1722712922841,3.11867829,60200.0,60183.0,0.45865]
[1722712922842,0.498471,60184.0,60183.0,0.45865]
[1722712923102,0.830785,60184.0,60183.0,0.00025]
[1722712923318,0.830785,60184.0,60183.0,0.02698838]
[1722712923512,0.830785,60184.0,60183.0,0.01678341]
[1722712923928,1.163099,60184.0,60183.0,0.01678341]
[1722712924061,1.256099,60184.0,60183.0,0.02278341]
[1722712924729,1.257099,60184.0,60183.0,0.02978341]
[1722712924927,0.002,60184.0,60183.0,0.02978341]
[1722712925331,0.002,60184.0,60183.0,0.20614738]
[1722712925557,0.002,60184.0,60183.0,0.03998838]
[1722712926484,0.002,60184.0,60183.0,0.20947023]
[1722712926698,0.002,60184.0,60183.0,1.07530823]
[1722712927231,0.002,60184.0,60183.0,1.10830823]
[1722712927507,0.002,60184.0,60183.0,0.77349638]
[1722712927778,0.002,60184.0,60183.0,0.24201838]
[1722712927985,0.002,60184.0,60183.0,0.15531838]
[1722712928191,0.168157,60184.0,60183.0,0.02428497]
[1722712928568,0.500471,60184.0,60183.0,0.02428497]
[1722712928790,0.500471,60184.0,60183.0,0.01408]
[1722712928791,0.168157,60184.0,60183.0,0.01408]
[1722712929126,0.500471,60184.0,60183.0,0.01408]
[1722712929621,0.832785,60184.0,60183.0,0.01408]
[1722712930337,1.165099,60184.0,60183.0,0.01408]
[1722712930575,0.832785,60184.0,60183.0,0.01408]
[1722712931591,0.500471,60184.0,60183.0,0.01408]
[1722712931795,0.002,60184.0,60183.0,0.381439]
[1722712931994,0.002,60184.0,60183.0,1.079077]
[1722712932199,0.002,60184.0,60183.0,1.69714689]
[1722712932439,0.002,60184.0,60183.0,1.70735186]
[1722712932992,0.002,60184.0,60183.0,1.71938216]
[1722712933573,0.002,60184.0,60183.0,2.09881949]
[1722712933930,0.002,60184.0,60183.0,1.74450049]
[1722712934133,0.002,60184.0,60183.0,0.35851527]
[1722712934334,0.002,60184.0,60183.0,0.34848497]
[1722712934956,0.168157,60184.0,60183.0,0.13878497]
[1722712935314,0.002,60184.0,60183.0,0.13878497]
[1722712935781,0.332259,60194.0,60187.0,0.166148]
[1722712935782,0.16613,60194.0,60187.0,0.166148]
[1722712935927,0.166133,60193.0,60188.0,0.00332257]
[1722712936134,0.166133,60193.0,60187.0,0.186004]
[1722712936336,0.166133,60193.0,60189.0,0.01019157]
[1722712936497,0.166133,60193.0,60187.0,0.186004]
[1722712936498,0.16434995,60189.0,60188.0,0.0101938]
[1722712936696,0.166146,60188.0,60187.0,0.01653341]
[1722712937188,0.498438,60188.0,60187.0,0.01653341]
[1722712937394,1.163022,60188.0,60187.0,0.01653341]
[1722712937542,0.83073,60188.0,60187.0,0.01653341]